Workbook

Sheet New
B1: REPORT
B3: Loan Participation
B4: Borrower | J4: Comments:
B5: Loan Amount
B6: Loan Number
B7: Date of Participation
B8: Maturity Date
B9: Beg. Interest Rate
B10: Selling Bank
B11: Purchasing Bank
B12: Amount Purchased
B13: % Purchased | D13: =IF(D12="","",+D12/D5) -> 
A14: 1
C17: Today's Date | D17: =IF(D5="","",TODAY()) -> 
B18: Payment Schedule | J18: =""& D10 ->  | M18: =""& D11 -> 
B19: Date | C19: Advance | D19: Interest Rate | E19: Accrued Interest | G19: Interest Payment | H19: Principal Payment | I19: Ending Principal | J19: Principal Pmt | K19: Interest Pmt | L19: Balance Owed | M19: Date | N19: Accrued Int | O19: Prin Payment | P19: Int Payment | Q19: Balance | R19: Current %
B20: =IF(D7="","",+D7) ->  | C20: =IF(B20="","",+D5) ->  | D20: =IF(+D9="","",D9) ->  | E20: 0 | G20: 0 | H20: 0 | I20: =C20 ->  | J20: 0 | K20: 0 | L20: =+D5-D12 -> 0 | M20: =IF(B20="","",B20) ->  | N20: 0 | O20: 0 | P20: 0 | Q20: =IF(M20="","",+I20*$D$13) ->  | R20: =IF(B20="","",Q20/I20) -> 
D21: =IF(B21="","",+D20) ->  | E21: =IF(B21="","",ROUND(+I20*D20/365*(B21-B20),2)+E20-G20) ->  | H21: =IF(B21="","",0) ->  | I21: =IF(B21="","",+C21-H21+I20) ->  | J21: =IF(OR(B21="",H21=0),"",H21-O21) ->  | K21: =IF(+OR(G21="",P21=""),"",G21-P21) ->  | L21: =IF(+OR(B21="",Q21=""),"",I21-Q21) ->  | M21: =IF(B21="","",B21) ->  | N21: =IF(M21="","",Q20*D20/365*(M21-M20)+N20-P20) ->  | O21: =IF(M21="","",IF($A$14=1,+H21*$D$13,IF($A$14=2,H21,0))) ->  | P21: =IF(M21="","",0) ->  | Q21: =IF(M21="","",+Q20-O21+(C21*$D$13)) -> 

Sheet Report
A1: Report
A2: PARTICIPATIONS SOLD/PURCHASED
E3: PUBLIC BANK & TRUST
A4: Selling Bank | B4: =SUM(Selling[[#All],[Column1]]) -> 14000000 | J4: Purchasing Bank | K4: =SUM(Purchasing[[#All],[Column1]]) -> 10525000
A5: =Banks!B2 -> FNB | B5: =IF(A5="","",SUMIF($G$16:$G$31,A5,$H$16:$H$31)) -> 1725000 | J5: =Banks!D2 -> FSB | K5: =IF(J5="","",SUMIF($J$16:$J$31,J5,$K$16:$K$31)) -> 4250000
A6: =Banks!B3 -> CNB | B6: 1000000 | J6: =Banks!D3 -> SSB | K6: 275000
A7: =Banks!B4 -> SNB | B7: 275000 | J7: =Banks!D4 -> LNB | K7: 6000000
A8: =Banks!B5 -> FFB | B8: 9000000 | J8: =Banks!D5 -> 
A9: LNB | B9: =IF(A9="","",SUMIF($G$16:$G$31,A9,$H$16:$H$31)) -> 2000000
G12: TOTALS | H12: =+B4+K4 -> 24525000
G13: =IF(SUM(Participations[Current Balance])+SUM(Participations[Balance Purchased])=K4+B4,"","Does not Balance") -> 
A14: Balances as of: | B14: =TODAY() -> 2012-01-11
A15: Borrower | B15: Loan No. | C15: Total Balance | D15: Int. Rate | E15: Maturity Date | F15: Column1 | G15: Selling Bank | H15: Current Balance | I15: Column3 | J15: Purchasing Bank | K15: Balance Purchased | L15: Payments | M15: % Purchased | N15: Current %
A16: =IF(B16="","",INDIRECT("'" &B16& "'!" & "d4")) -> John Q Public | B16: 201101 | C16: =IF(B16="","",(VLOOKUP(+$B$14,INDIRECT("'"&B16&"'!"&"b19:i325"),8))) -> 3500000 | D16: =IF(C16="","",(VLOOKUP(+$B$14,INDIRECT("'"&B16&"'!"&"b19:i325"),3))) -> 0.05 | E16: =IF(B16="","",INDIRECT("'" &B16& "'!" & "d7")) -> 2011-01-01 | F16: =IF(C16="","",0) -> 0 | G16: =IF(B16="","",INDIRECT("'" &B16& "'!" & "d10")) -> FNB | H16: =IF(B16="","",(VLOOKUP($B$14,INDIRECT("'"&B16&"'!"&"b19:l325"),11))) -> 1725000 | I16: =IF(H16="","",0) -> 0 | J16: =IF(B16="","",INDIRECT("'" &B16& "'!" & "d11")) -> FSB | K16: =IF(B16="","",(VLOOKUP($B$14,INDIRECT("'"&B16&"'!"&"b19:q325"),16))) -> 1750000 | L16: =IF(B16="","",IF(INDIRECT("'" &B16& "'!" & "a14")=1,"Pro Rata",IF(INDIRECT("'" &B16& "'!" & "a14")=2,"1st Out","Last Out"))) -> Pro Rata | M16: =IF(B16="","",INDIRECT("'" &B16& "'!" & "d13")) -> 0.5 | N16: =+Participations[[#This Row],[Balance Purchased]]/Participations[[#This Row],[ Total Balance]] -> 0.5
A17: =IF(B17="","",INDIRECT("'" &B17& "'!" & "d4")) -> James R. Public | B17: 201102 | C17: =IF(B17="","",(VLOOKUP(+$B$14,INDIRECT("'"&B17&"'!"&"b19:i325"),8))) -> 2000000 | D17: =IF(C17="","",(VLOOKUP(+$B$14,INDIRECT("'"&B17&"'!"&"b19:i325"),3))) -> 0.06 | E17: =IF(B17="","",INDIRECT("'" &B17& "'!" & "d7")) -> 2011-01-01 | F17: =IF(C17="","",0) -> 0 | G17: =IF(B17="","",INDIRECT("'" &B17& "'!" & "d10")) -> CNB | H17: =IF(B17="","",(VLOOKUP($B$14,INDIRECT("'"&B17&"'!"&"b19:l325"),11))) -> 1000000 | I17: =IF(H17="","",0) -> 0 | J17: =IF(B17="","",INDIRECT("'" &B17& "'!" & "d11")) -> FSB | K17: =IF(B17="","",(VLOOKUP($B$14,INDIRECT("'"&B17&"'!"&"b19:q325"),16))) -> 1000000 | L17: =IF(B17="","",IF(INDIRECT("'" &B17& "'!" & "a14")=1,"Pro Rata",IF(INDIRECT("'" &B17& "'!" & "a14")=2,"1st Out","Last Out"))) -> 1st Out | M17: =IF(B17="","",INDIRECT("'" &B17& "'!" & "d13")) -> 0.5 | N17: =+Participations[[#This Row],[Balance Purchased]]/Participations[[#This Row],[ Total Balance]] -> 0.5
A18: Jane Public | B18: 201103 | C18: 550000 | D18: 0.055 | E18: 2011-01-11 | F18: 0 | G18: SNB | H18: 275000 | I18: 0 | J18: SSB | K18: 275000 | L18: Pro Rata | M18: 0.5 | N18: =+Participations[[#This Row],[Balance Purchased]]/Participations[[#This Row],[ Total Balance]] -> 0.5
A19: Jason Public | B19: 201104 | C19: 15000000 | D19: =IF(C19="","",(VLOOKUP(+$B$14,INDIRECT("'"&B19&"'!"&"b19:i325"),3))) -> 0.065 | E19: =IF(B19="","",INDIRECT("'" &B19& "'!" & "d7")) -> 2011-02-01 | F19: =IF(C19="","",0) -> 0 | G19: =IF(B19="","",INDIRECT("'" &B19& "'!" & "d10")) -> FFB | H19: =IF(B19="","",(VLOOKUP($B$14,INDIRECT("'"&B19&"'!"&"b19:l325"),11))) -> 9000000 | I19: =IF(H19="","",0) -> 0 | J19: LNB | K19: =IF(B19="","",(VLOOKUP($B$14,INDIRECT("'"&B19&"'!"&"b19:q325"),16))) -> 6000000 | L19: =IF(B19="","",IF(INDIRECT("'" &B19& "'!" & "a14")=1,"Pro Rata",IF(INDIRECT("'" &B19& "'!" & "a14")=2,"1st Out","Last Out"))) -> Last Out | M19: =IF(B19="","",INDIRECT("'" &B19& "'!" & "d13")) -> 0.4 | N19: =+Participations[[#This Row],[Balance Purchased]]/Participations[[#This Row],[ Total Balance]] -> 0.4
A20: Jeremy Public | B20: 201105 | C20: 3500000 | D20: =IF(C20="","",(VLOOKUP(+$B$14,INDIRECT("'"&B20&"'!"&"b19:i325"),3))) -> 0.05 | E20: =IF(B20="","",INDIRECT("'" &B20& "'!" & "d7")) -> 2011-03-01 | F20: =IF(C20="","",0) -> 0 | G20: =IF(B20="","",INDIRECT("'" &B20& "'!" & "d10")) -> LNB | H20: =IF(B20="","",(VLOOKUP($B$14,INDIRECT("'"&B20&"'!"&"b19:l325"),11))) -> 2000000 | I20: =IF(H20="","",0) -> 0 | J20: FSB | K20: =IF(B20="","",(VLOOKUP($B$14,INDIRECT("'"&B20&"'!"&"b19:q325"),16))) -> 1500000 | L20: =IF(B20="","",IF(INDIRECT("'" &B20& "'!" & "a14")=1,"Pro Rata",IF(INDIRECT("'" &B20& "'!" & "a14")=2,"1st Out","Last Out"))) -> Pro Rata | M20: =IF(B20="","",INDIRECT("'" &B20& "'!" & "d13")) -> 0.4285714286 | N20: =+Participations[[#This Row],[Balance Purchased]]/Participations[[#This Row],[ Total Balance]] -> 0.4285714286
J21: =IF(B21="","",INDIRECT("'" &B21& "'!" & "d10")) -> 
A103: =IF(B103="","",INDIRECT("'" &B103& "'!" & "d4")) ->  | C103: =IF(B103="","",(VLOOKUP(+$B$14,INDIRECT("'"&B103&"'!"&"b20:i325"),8))) ->  | D103: =IF(C103="","",(VLOOKUP(+$B$14,INDIRECT("'"&B103&"'!"&"b20:g325"),3))) ->  | E103: =IF(B103="","",INDIRECT("'" &B103& "'!" & "d8")) ->  | F103: =IF(C103="","",0) ->  | G103: =IF(B103="","",INDIRECT("'" &B103& "'!" & "d10")) ->  | H103: =IF(B103="","",(VLOOKUP($B$14,INDIRECT("'"&B103&"'!"&"b20:l325"),11))) ->  | I103: =IF(H103="","",0) ->  | J103: =IF(B103="","",INDIRECT("'" &B103& "'!" & "d11")) ->  | K103: =IF(B103="","",(VLOOKUP($B$14,INDIRECT("'"&B103&"'!"&"b20:q325"),16))) ->  | L103: =IF(B103="","",IF(INDIRECT("'" &B103& "'!" & "a14")=1,"Pro Rata",IF(INDIRECT("'" &B103& "'!" & "a14")=2,"1st Out","Last Out"))) ->  | M103: =IF(B103="","",INDIRECT("'" &B103& "'!" & "d13")) -> 

Sheet 201105
B1: REPORT
B3: Loan Participation
B4: Borrower | D4: Jeremy Public | J4: Comments:
B5: Loan Amount | D5: 3500000
B6: Loan Number | D6: 201105
B7: Date of Participation | D7: 2011-03-01
B8: Maturity Date | D8: 2031-03-01
B9: Beg. Interest Rate | D9: 0.05
B10: Selling Bank | D10: LNB
B11: Purchasing Bank | D11: FSB
B12: Amount Purchased | D12: 1500000
B13: % Purchased | D13: =IF(D12="","",+D12/D5) -> 0.4285714286
A14: 1
C17: Today's Date | D17: =IF(D5="","",TODAY()) -> 2012-01-11
B18: Payment Schedule | J18: =""& D10 -> LNB | M18: =""& D11 -> FSB
B19: Date | C19: Advance | D19: Interest Rate | E19: Accrued Interest | G19: Interest Payment | H19: Principal Payment | I19: Ending Principal | J19: Principal Pmt | K19: Interest Pmt | L19: Balance Owed | M19: Date | N19: Accrued Int | O19: Prin Payment | P19: Int Payment | Q19: Balance | R19: Current %
B20: =IF(D7="","",+D7) -> 2011-03-01 | C20: =IF(D5="","",+D5) -> 3500000 | D20: =IF(+D9="","",D9) -> 0.05 | E20: 0 | G20: 0 | H20: 0 | I20: =C20 -> 3500000 | J20: 0 | K20: 0 | L20: =+D5-D12 -> 2000000 | M20: =+B20 -> 2011-03-01 | N20: 0 | O20: 0 | P20: 0 | Q20: =IF(M20="","",+I20*$D$13) -> 1500000 | R20: =IF(B20="","",Q20/I20) -> 0.4285714286
B21: 2011-04-01 | D21: =IF(B21="","",+D20) -> 0.05 | E21: =IF(B21="","",ROUND(+I20*D20/365*(B21-B20),2)+E20-G20) -> 14863.01 | G21: =IF(B21="","",0) -> 0 | H21: =IF(B21="","",0) -> 0 | I21: =IF(B21="","",+C21-H21+I20) -> 3500000 | J21: =IF(OR(B21="",H21=0),"",H21-O21) ->  | K21: =IF(+OR(G21="",P21=""),"",F21-P21) -> 0 | L21: =IF(+OR(B21="",Q21=""),"",I21-Q21) -> 2000000 | M21: 2011-04-01 | N21: =IF(M21="","",Q20*D20/365*(M21-M20)+N20-P20) -> 6369.863014 | O21: =IF(M21="","",IF($A$14=1,+H21*$D$13,IF($A$14=2,H21,0))) -> 0 | P21: =IF(M21="","",0) -> 0 | Q21: =IF(M21="","",+Q20-O21+(C21*$D$13)) -> 1500000 | R21: 0.4285714286
D22: =IF(B22="","",+D21) ->  | E22: =IF(B22="","",ROUND(+I21*D21/365*(B22-B21),2)+E21-G21) ->  | G22: =IF(B22="","",0) ->  | H22: =IF(B22="","",0) ->  | I22: =IF(B22="","",+C22-H22+I21) ->  | J22: =IF(OR(B22="",H22=0),"",H22-O22) ->  | K22: =IF(+OR(G22="",P22=""),"",F22-P22) ->  | L22: =IF(+OR(B22="",Q22=""),"",I22-Q22) ->  | M22: =IF(B22="","",B22) ->  | N22: =IF(M22="","",Q21*D21/365*(M22-M21)+N21-P21) ->  | O22: =IF(M22="","",IF($A$14=1,+H22*$D$13,IF($A$14=2,H22,0))) ->  | P22: =IF(M22="","",0) ->  | Q22: =IF(M22="","",+Q21-O22+(C22*$D$13)) -> 

Sheet 201104
B1: REPORT
B3: Loan Participation
B4: Borrower | D4: Jason Public | J4: Comments:
B5: Loan Amount | D5: 15000000
B6: Loan Number | D6: 201104
B7: Date of Participation | D7: 2011-02-01
B8: Maturity Date | D8: 2021-02-01
B9: Beg. Interest Rate | D9: 0.065
B10: Selling Bank | D10: FFB
B11: Purchasing Bank | D11: LNB
B12: Amount Purchased | D12: 6000000
B13: % Purchased | D13: =IF(D12="","",+D12/D5) -> 0.4
A14: 3
C17: Today's Date | D17: =IF(D5="","",TODAY()) -> 2012-01-11
B18: Payment Schedule | J18: =""& D10 -> FFB | M18: =""& D11 -> LNB
B19: Date | C19: Advance | D19: Interest Rate | E19: Accrued Interest | G19: Interest Payment | H19: Principal Payment | I19: Ending Principal | J19: Principal Pmt | K19: Interest Pmt | L19: Balance Owed | M19: Date | N19: Accrued Int | O19: Prin Payment | P19: Int Payment | Q19: Balance | R19: Current %
B20: =IF(D7="","",+D7) -> 2011-02-01 | C20: =IF(D5="","",+D5) -> 15000000 | D20: =IF(+D9="","",D9) -> 0.065 | E20: 0 | G20: 0 | H20: 0 | I20: =C20 -> 15000000 | J20: 0 | K20: 0 | L20: =+D5-D12 -> 9000000 | M20: =+B20 -> 2011-02-01 | N20: 0 | O20: 0 | P20: 0 | Q20: =IF(M20="","",+I20*$D$13) -> 6000000 | R20: =IF(B20="","",Q20/I20) -> 0.4
D21: =IF(B21="","",+D20) ->  | E21: =IF(B21="","",ROUND(+I20*D20/365*(B21-B20),2)+E20-G20) ->  | G21: =IF(B21="","",0) ->  | H21: =IF(B21="","",0) ->  | I21: =IF(B21="","",+C21-H21+I20) ->  | J21: =IF(OR(B21="",H21=0),"",H21-O21) ->  | K21: =IF(+OR(G21="",P21=""),"",F21-P21) ->  | L21: =IF(+OR(B21="",Q21=""),"",I21-Q21) ->  | M21: =IF(New!$B21="","",B21) ->  | N21: =IF(M21="","",Q20*D20/365*(M21-M20)+N20-P20) ->  | O21: =IF(M21="","",IF($A$14=1,+H21*$D$13,IF($A$14=2,H21,0))) ->  | P21: =IF(M21="","",0) ->  | Q21: =IF(M21="","",+Q20-O21+(C21*$D$13)) -> 
D22: =IF(B22="","",+D21) ->  | E22: =IF(B22="","",ROUND(+I21*D21/365*(B22-B21),2)+E21-G21) ->  | G22: =IF(B22="","",0) ->  | H22: =IF(B22="","",0) ->  | I22: =IF(B22="","",+C22-H22+I21) ->  | J22: =IF(OR(B22="",H22=0),"",H22-O22) ->  | K22: =IF(+OR(G22="",P22=""),"",F22-P22) ->  | L22: =IF(+OR(B22="",Q22=""),"",I22-Q22) ->  | M22: =IF(B22="","",B22) ->  | N22: =IF(M22="","",Q21*D21/365*(M22-M21)+N21-P21) ->  | O22: =IF(M22="","",IF($A$14=1,+H22*$D$13,IF($A$14=2,H22,0))) ->  | P22: =IF(M22="","",0) ->  | Q22: =IF(M22="","",+Q21-O22+(C22*$D$13)) -> 

Sheet 201103
B1: REPORT
B3: Loan Participation
B4: Borrower | D4: Jane Public | J4: Comments:
B5: Loan Amount | D5: 550000
B6: Loan Number | D6: 201103
B7: Date of Participation | D7: 2011-01-11
B8: Maturity Date | D8: 2021-01-11
B9: Beg. Interest Rate | D9: 0.055
B10: Selling Bank | D10: SNB
B11: Purchasing Bank | D11: SSB
B12: Amount Purchased | D12: 275000
B13: % Purchased | D13: =IF(D12="","",+D12/D5) -> 0.5
A14: 1
C17: Today's Date | D17: =IF(D5="","",TODAY()) -> 2012-01-11
B18: Payment Schedule | J18: =""& D10 -> SNB | M18: =""& D11 -> SSB
B19: Date | C19: Advance | D19: Interest Rate | E19: Accrued Interest | G19: Interest Payment | H19: Principal Payment | I19: Ending Principal | J19: Principal Pmt | K19: Interest Pmt | L19: Balance Owed | M19: Date | N19: Accrued Int | O19: Prin Payment | P19: Int Payment | Q19: Balance | R19: Current %
B20: =IF(D7="","",+D7) -> 2011-01-11 | C20: =IF(D5="","",+D5) -> 550000 | D20: =IF(+D9="","",D9) -> 0.055 | E20: 0 | G20: 0 | H20: 0 | I20: =C20 -> 550000 | J20: 0 | K20: 0 | L20: =+D5-D12 -> 275000 | M20: =+B20 -> 2011-01-11 | N20: 0 | O20: 0 | P20: 0 | Q20: =IF(M20="","",+I20*$D$13) -> 275000 | R20: =IF(B20="","",Q20/I20) -> 0.5
D21: =IF(B21="","",+D20) ->  | E21: =IF(B21="","",ROUND(+I20*D20/365*(B21-B20),2)+E20-G20) ->  | G21: =IF(B21="","",0) ->  | H21: =IF(B21="","",0) ->  | I21: =IF(B21="","",+C21-H21+I20) ->  | J21: =IF(OR(B21="",H21=0),"",H21-O21) ->  | K21: =IF(+OR(G21="",P21=""),"",F21-P21) ->  | L21: =IF(+OR(B21="",Q21=""),"",I21-Q21) ->  | M21: =IF(New!$B21="","",B21) ->  | N21: =IF(M21="","",Q20*D20/365*(M21-M20)+N20-P20) ->  | O21: =IF(M21="","",IF($A$14=1,+H21*$D$13,IF($A$14=2,H21,0))) ->  | P21: =IF(M21="","",0) ->  | Q21: =IF(M21="","",+Q20-O21+(C21*$D$13)) -> 
D22: =IF(B22="","",+D21) ->  | E22: =IF(B22="","",ROUND(+I21*D21/365*(B22-B21),2)+E21-G21) ->  | G22: =IF(B22="","",0) ->  | H22: =IF(B22="","",0) ->  | I22: =IF(B22="","",+C22-H22+I21) ->  | J22: =IF(OR(B22="",H22=0),"",H22-O22) ->  | K22: =IF(+OR(G22="",P22=""),"",F22-P22) ->  | L22: =IF(+OR(B22="",Q22=""),"",I22-Q22) ->  | M22: =IF(B22="","",B22) ->  | N22: =IF(M22="","",Q21*D21/365*(M22-M21)+N21-P21) ->  | O22: =IF(M22="","",IF($A$14=1,+H22*$D$13,IF($A$14=2,H22,0))) ->  | P22: =IF(M22="","",0) ->  | Q22: =IF(M22="","",+Q21-O22+(C22*$D$13)) -> 

Sheet 201102
B1: REPORT
B3: Loan Participation
B4: Borrower | D4: James R. Public | J4: Comments:
B5: Loan Amount | D5: 2000000
B6: Loan Number | D6: 201102
B7: Date of Participation | D7: 2011-01-01
B8: Maturity Date | D8: 2021-01-01
B9: Beg. Interest Rate | D9: 0.06
B10: Selling Bank | D10: CNB
B11: Purchasing Bank | D11: FSB
B12: Amount Purchased | D12: 1000000
B13: % Purchased | D13: =IF(D12="","",+D12/D5) -> 0.5
A14: 2
C17: Today's Date | D17: =IF(D5="","",TODAY()) -> 2012-01-11
B18: Payment Schedule | J18: =""& D10 -> CNB | M18: =""& D11 -> FSB
B19: Date | C19: Advance | D19: Interest Rate | E19: Accrued Interest | G19: Interest Payment | H19: Principal Payment | I19: Ending Principal | J19: Principal Pmt | K19: Interest Pmt | L19: Balance Owed | M19: Date | N19: Accrued Int | O19: Prin Payment | P19: Int Payment | Q19: Balance | R19: Current %
B20: =IF(D7="","",+D7) -> 2011-01-01 | C20: =IF(D5="","",+D5) -> 2000000 | D20: =IF(+D9="","",D9) -> 0.06 | E20: 0 | G20: 0 | H20: 0 | I20: =C20 -> 2000000 | J20: 0 | K20: 0 | L20: =+D5-D12 -> 1000000 | M20: =+B20 -> 2011-01-01 | N20: 0 | O20: 0 | P20: 0 | Q20: =IF(M20="","",+I20*$D$13) -> 1000000 | R20: =IF(B20="","",Q20/I20) -> 0.5
D21: =IF(B21="","",+D20) ->  | E21: =IF(B21="","",ROUND(+I20*D20/365*(B21-B20),2)+E20-G20) ->  | G21: =IF(B21="","",0) ->  | H21: =IF(B21="","",0) ->  | I21: =IF(B21="","",+C21-H21+I20) ->  | J21: =IF(OR(B21="",H21=0),"",H21-O21) ->  | K21: =IF(+OR(G21="",P21=""),"",F21-P21) ->  | L21: =IF(+OR(B21="",Q21=""),"",I21-Q21) ->  | M21: =IF(New!$B21="","",B21) ->  | N21: =IF(M21="","",Q20*D20/365*(M21-M20)+N20-P20) ->  | O21: =IF(M21="","",IF($A$14=1,+H21*$D$13,IF($A$14=2,H21,0))) ->  | P21: =IF(M21="","",0) ->  | Q21: =IF(M21="","",+Q20-O21+(C21*$D$13)) -> 
D22: =IF(B22="","",+D21) ->  | E22: =IF(B22="","",ROUND(+I21*D21/365*(B22-B21),2)+E21-G21) ->  | G22: =IF(B22="","",0) ->  | H22: =IF(B22="","",0) ->  | I22: =IF(B22="","",+C22-H22+I21) ->  | J22: =IF(OR(B22="",H22=0),"",H22-O22) ->  | K22: =IF(+OR(G22="",P22=""),"",F22-P22) ->  | L22: =IF(+OR(B22="",Q22=""),"",I22-Q22) ->  | M22: =IF(B22="","",B22) ->  | N22: =IF(M22="","",Q21*D21/365*(M22-M21)+N21-P21) ->  | O22: =IF(M22="","",IF($A$14=1,+H22*$D$13,IF($A$14=2,H22,0))) ->  | P22: =IF(M22="","",0) ->  | Q22: =IF(M22="","",+Q21-O22+(C22*$D$13)) -> 

Sheet 201101
B1: REPORT
B3: Loan Participation
B4: Borrower | D4: John Q Public | J4: Comments:
B5: Loan Amount | D5: 1000000
B6: Loan Number | D6: 201101
B7: Date of Participation | D7: 2011-01-01
B8: Maturity Date | D8: 2021-01-01
B9: Beg. Interest Rate | D9: 0.05
B10: Selling Bank | D10: FNB
B11: Purchasing Bank | D11: FSB
B12: Amount Purchased | D12: 500000
B13: % Purchased | D13: =IF(D12="","",+D12/D5) -> 0.5
A14: 1
C17: Today's Date | D17: =IF(D5="","",TODAY()) -> 2012-01-11
B18: Payment Schedule | J18: =""& D10 -> FNB | M18: =""& D11 -> FSB
B19: Date | C19: Advance | D19: Interest Rate | E19: Accrued Interest | G19: Interest Payment | H19: Principal Payment | I19: Ending Principal | J19: Principal Pmt | K19: Interest Pmt | L19: Balance Owed | M19: Date | N19: Accrued Int | O19: Prin Payment | P19: Int Payment | Q19: Balance | R19: Current %
B20: =IF(D7="","",+D7) -> 2011-01-01 | C20: =IF(D5="","",+D5) -> 1000000 | D20: =IF(+D9="","",D9) -> 0.05 | E20: 0 | G20: 0 | H20: 0 | I20: =C20 -> 1000000 | J20: 0 | K20: 0 | L20: =+D5-D12 -> 500000 | M20: =+B20 -> 2011-01-01 | N20: 0 | O20: 0 | P20: 0 | Q20: =IF(M20="","",+I20*$D$13) -> 500000 | R20: =IF(B20="","",Q20/I20) -> 0.5
B21: 2011-02-01 | C21: 50000 | D21: =IF(B21="","",+D20) -> 0.05 | E21: =IF(B21="","",ROUND(+I20*D20/365*(B21-B20),2)+E20-G20) -> 4246.58 | G21: =IF(B21="","",0) -> 0 | H21: =IF(B21="","",0) -> 0 | I21: =IF(B21="","",+C21-H21+I20) -> 1050000 | J21: =IF(OR(B21="",H21=0),"",H21-O21) ->  | K21: =IF(+OR(G21="",P21=""),"",F21-P21) -> 0 | L21: =IF(+OR(B21="",Q21=""),"",I21-Q21) -> 525000 | M21: 2011-02-01 | N21: =IF(M21="","",Q20*D20/365*(M21-M20)+N20-P20) -> 2123.287671 | O21: =IF(M21="","",IF($A$14=1,+H21*$D$13,IF($A$14=2,H21,0))) -> 0 | P21: =IF(M21="","",0) -> 0 | Q21: =IF(M21="","",+Q20-O21+(C21*$D$13)) -> 525000 | R21: 0.5
B22: 2011-03-01 | C22: 2500000 | D22: =IF(B22="","",+D21) -> 0.05 | E22: =IF(B22="","",ROUND(+I21*D21/365*(B22-B21),2)+E21-G21) -> 8273.98 | G22: =IF(B22="","",0) -> 0 | H22: =IF(B22="","",0) -> 0 | I22: =IF(B22="","",+C22-H22+I21) -> 3550000 | J22: =IF(OR(B22="",H22=0),"",H22-O22) ->  | K22: =IF(+OR(G22="",P22=""),"",F22-P22) -> 0 | L22: =IF(+OR(B22="",Q22=""),"",I22-Q22) -> 1775000 | M22: 2011-03-01 | N22: =IF(M22="","",Q21*D21/365*(M22-M21)+N21-P21) -> 4136.986301 | O22: =IF(M22="","",IF($A$14=1,+H22*$D$13,IF($A$14=2,H22,0))) -> 0 | P22: =IF(M22="","",0) -> 0 | Q22: =IF(M22="","",+Q21-O22+(C22*$D$13)) -> 1775000 | R22: 0.5
B23: 2011-04-01 | D23: =IF(B23="","",+D22) -> 0.05 | E23: =IF(B23="","",ROUND(+I22*D22/365*(B23-B22),2)+E22-G22) -> 23349.32 | G23: 10000 | H23: 50000 | I23: =IF(B23="","",+C23-H23+I22) -> 3500000 | J23: =IF(H23="","",IF($D$14=1,+H23*(1-$D$13),IF($D$14=2,0,H23))) -> 50000 | K23: =IF(B23="","",0) -> 0 | L23: =IF(B23="","",IF($D$14=1,L22-((1-$D$13)*H23),IF($D$14=2,L22,+L22-H23))) -> 1725000 | M23: 2011-04-01 | N23: =IF(M23="","",Q22*D22/365*(M23-M22)-P22) -> 7537.671233 | O23: 25000 | P23: =IF(M23="","",+G23-K23) -> 10000 | Q23: =IF(M23="","",+Q22-O23) -> 1750000 | R23: 0.5

Sheet Banks
A1: Seller | B1: Seller | C1: Purchaser | D1: Buying
A2: =Selling_Bank -> FNB | B2: FNB | C2: =Purchasing__Bank -> FSB | D2: FSB
A3: CNB | B3: CNB | C3: FSB | D3: SSB
A4: SNB | B4: SNB | C4: SSB | D4: LNB
A5: FFB | B5: FFB | C5: LNB
A6: LNB | B6: LNB | C6: FSB
